bitfinex-derivatives/quotes_SOLF0:USTF0_20250309
["timestamp","ask_amount","ask_price","bid_price","bid_amount"]
[1741528668436,119.30777592,133.85,133.84,31.53572631]
[1741528668637,119.30777592,133.85,133.84,0.05572631]
[1741528669033,153.17560631,133.85,133.75,255.88]
[1741528669235,33.86783039,133.82,133.75,255.88]
[1741528669436,65.42783039,133.82,133.75,255.88]
[1741528670236,0.05300749,133.8,133.77,0.05451243]
[1741528671437,7.4759,133.79,133.77,0.05451243]
[1741528671645,0.05300749,133.8,133.77,0.05451243]
[1741528672539,7.4763,133.78,133.77,0.05451243]
[1741528672941,0.05300749,133.8,133.77,0.05451243]
[1741528673140,7.4758,133.79,133.77,0.05451243]
[1741528673550,65.44783039,133.78,133.64,195.30086163]
[1741528673747,7.4786,133.74,133.65,289.74783039]
[1741528673946,1.9335,133.77,133.65,289.74783039]
[1741528674336,1.9335,133.77,133.68,33.86783039]
[1741528674536,31.56,133.79,133.69,31.56]
[1741528674839,0.0483284,133.74,133.73,7.479]
[1741528675036,35.95343039,133.81,133.73,255.86]
[1741528675037,2.0856,133.81,133.73,255.86]
[1741528676142,0.04907653,133.78,133.76,0.05688064]
[1741528680047,7.52547653,133.78,133.76,0.05688064]
[1741528680549,0.04907653,133.78,133.76,0.05688064]
[1741528681956,7.4768,133.77,133.76,0.05688064]
[1741528682547,38.96557653,133.78,133.76,0.05688064]
[1741528682742,31.48907653,133.78,133.76,0.05688064]
[1741528683654,38.96537653,133.78,133.76,0.05688064]
[1741528683853,31.48907653,133.78,133.76,0.05688064]
[1741528684055,7.4768,133.77,133.76,0.05688064]
[1741528684353,31.48907653,133.78,133.76,0.05688064]
[1741528685348,7.4768,133.77,133.76,0.05688064]
[1741528685554,31.48907653,133.78,133.76,0.05688064]
[1741528685956,38.96567653,133.78,133.76,0.05688064]
[1741528686159,31.48907653,133.78,133.76,0.05688064]
[1741528686350,7.4795,133.73,133.66,224.3]
[1741528686551,31.38,133.74,133.66,224.3]
[1741528686751,31.38,133.73,133.66,224.3]
[1741528686953,33.86783039,133.72,133.66,224.3]
[1741528687555,7.4824,133.67,133.66,224.3]
[1741528688057,7.483,133.66,133.65,0.05428469]
[1741528688255,65.24783039,133.69,133.6,224.3]
[1741528688455,0.0481744,133.67,133.64,0.05409028]
[1741528688664,7.4835,133.65,133.64,0.05409028]
[1741528689063,31.36,133.65,133.6,224.3]
[1741528689366,7.4854,133.62,133.6,224.3]
[1741528689867,7.4858,133.61,133.6,224.3]
[1741528690069,31.36,133.65,133.59,30.89989998]
[1741528690272,0.05336627,133.62,133.59,0.04972952]
[1741528690470,0.05336627,133.62,133.51,255.7]
[1741528690471,7.4868,133.6,133.53,7.4902]
[1741528690874,31.32,133.61,133.53,7.4902]
[1741528691076,31.32,133.61,133.53,33.86783039]
[1741528691569,4.1271,133.66,133.56,33.91998382]
[1741528691767,2.0821,133.66,133.59,33.86783039]
[1741528691970,31.32,133.68,133.6,224.42]
[1741528692172,31.32,133.68,133.61,31.36]
[1741528692569,31.32,133.68,133.62,7.4851]
[1741528692765,0.05413164,133.66,133.63,0.05730324]
[1741528693171,0.05413164,133.66,133.63,7.54180324]
[1741528693372,0.05413164,133.66,133.63,0.05730324]
[1741528693676,0.05413164,133.66,133.63,7.54150324]
[1741528693873,0.05413164,133.66,133.63,0.05730324]
[1741528696572,31.33413164,133.66,133.6,224.42]
[1741528696774,1.9144,133.65,133.6,224.42]
[1741528697071,1.9144,133.65,133.56,7.4884]
[1741528697279,33.86783039,133.63,133.54,224.44]
[1741528697472,33.1768,133.62,133.54,224.44]
[1741528697773,0.05311515,133.6,133.57,0.05674047]
[1741528698168,0.05311515,133.6,133.5,33.86783039]
[1741528698369,33.86783039,133.6,133.48,224.48]
[1741528699077,33.1768,133.62,133.48,224.48]
[1741528699268,7.4859,133.61,133.5,33.86783039]
[1741528699469,0.05356449,133.56,133.54,0.05659039]
[1741528699773,33.1768,133.62,133.54,0.05659039]
[1741528700279,0.05022759,133.59,133.54,0.05659039]
[1741528700872,0.05022759,133.59,133.55,7.489]
[1741528701175,0.05022759,133.59,133.54,0.05659039]
[1741528702480,0.05022759,133.59,133.55,31.12]
[1741528703178,0.05022759,133.59,133.57,7.4876]
[1741528703375,0.05022759,133.59,133.55,31.28]
[1741528703575,0.05022759,133.59,133.56,7.4882]
[1741528703975,0.05022759,133.59,133.55,31.28]
[1741528706177,7.53722759,133.59,133.55,38.7688]
[1741528706378,0.05022759,133.59,133.55,31.28]
[1741528706776,0.05022759,133.59,133.56,7.4881]
[1741528707175,0.05022759,133.59,133.55,31.28]
[1741528707381,0.05022759,133.59,133.58,7.4874]
[1741528707577,0.05022759,133.59,133.56,224.56]
[1741528707782,0.05022759,133.59,133.57,0.0477653]
[1741528708789,0.05022759,133.59,133.58,7.4874]
[1741528709792,2.759e-05,133.59,133.58,7.4874]
[1741528713287,2.759e-05,133.59,133.57,31.1277653]
[1741528713288,2.759e-05,133.59,133.57,38.6156653]
[1741528713487,2.759e-05,133.59,133.57,7.5356653]
[1741528713682,2.759e-05,133.59,133.57,0.0477653]
[1741528713887,2.759e-05,133.59,133.58,7.4874]
[1741528717986,31.08002759,133.59,133.5,226.19751459]
[1741528718288,2.0897,133.58,133.5,224.8949]
[1741528718484,9.5775,133.58,133.5,224.8949]
[1741528718688,9.5775,133.58,133.53,7.4902]
[1741528718888,9.5775,133.58,133.5,224.8949]
[1741528719081,2.0897,133.58,133.55,7.4891]
[1741528719282,0.05537861,133.56,133.55,7.4891]
[1741528719479,0.05537861,133.56,133.53,0.0538705]
[1741528719680,0.05537861,133.56,133.54,7.4895]
[1741528719883,0.05537861,133.56,133.53,0.0538705]
[1741528720081,0.05537861,133.56,133.55,7.4891]
[1741528720283,0.05537861,133.56,133.53,0.0538705]
[1741528720586,7.54427861,133.56,133.53,0.0538705]
[1741528721288,0.05537861,133.56,133.53,0.0538705]
[1741528721492,7.4892,133.55,133.53,0.0538705]
[1741528722894,7.4897,133.54,133.53,0.0538705]
[1741528723082,31.1,133.55,133.5,7.4917]
[1741528723286,31.1,133.55,133.44,289.56783039]
[1741528723488,31.1,133.55,133.46,31.1]
[1741528723686,31.1,133.55,133.47,62.0]
[1741528724094,7.4897,133.54,133.47,62.0]
[1741528724295,0.05332787,133.52,133.5,0.04830737]
[1741528724593,0.05332787,133.52,133.5,7.53990737]
[1741528724899,0.05332787,133.52,133.5,0.04830737]
[1741528725192,0.05332787,133.52,133.5,7.53980737]
[1741528725385,0.05332787,133.52,133.5,0.04830737]
[1741528725787,0.05332787,133.52,133.51,7.4914]
[1741528726200,0.05332787,133.52,133.5,0.04830737]
[1741528726495,0.05332787,133.52,133.5,7.54000737]
[1741528726797,0.05332787,133.52,133.5,0.04830737]
[1741528729397,0.05332787,133.52,133.44,258.46783039]
[1741528729398,31.1,133.51,133.44,224.6]
[1741528729693,4.0071,133.5,133.44,224.6]
[1741528730099,33.86783039,133.49,133.37,226.5517]
[1741528730487,0.05596211,133.44,133.42,0.05105689]
[1741528730694,6.211e-05,133.44,133.43,7.4959]
[1741528730895,31.1,133.53,133.43,33.86783039]
[1741528731196,3.987,133.55,133.46,33.86783039]
[1741528731500,33.86783039,133.58,133.47,286.7]
[1741528731696,7.489,133.56,133.51,7.4913]
[1741528731896,0.05337314,133.54,133.51,0.0575885]
[1741528732496,0.05337314,133.54,133.53,7.4902]
[1741528732800,0.05337314,133.54,133.51,0.0575885]
[1741528736195,0.05337314,133.54,133.53,7.4903]
[1741528736397,0.05337314,133.54,133.51,31.1575885]
[1741528736593,0.05337314,133.54,133.51,0.0575885]
[1741528737696,7.54357314,133.54,133.51,0.0575885]
[1741528738302,7.4904,133.53,133.51,0.0575885]
[1741528738700,0.05337314,133.54,133.51,0.0575885]
[1741528739302,0.05337314,133.54,133.51,7.5485885]
[1741528739602,7.54307314,133.54,133.51,0.0575885]
[1741528740201,0.05337314,133.54,133.51,0.0575885]
[1741528740404,7.4908,133.52,133.51,0.0575885]
[1741528740703,0.05337314,133.54,133.47,224.7]
[1741528740704,35.88450353,133.54,133.47,224.7]
[1741528740905,2.0121,133.53,133.47,224.7]
[1741528741205,33.86783039,133.51,133.47,224.7]
[1741528741497,7.4936,133.47,133.41,255.8]
[1741528741693,31.15230152,133.5,133.48,0.051162]
[1741528741897,7.4928,133.49,133.45,7.4946]
[1741528742096,33.1121,133.53,133.42,64.96783039]
[1741528742502,7.4911,133.52,133.48,7.4927]
[1741528742702,33.1121,133.53,133.42,64.96783039]
[1741528742903,40.6027,133.53,133.42,64.96783039]
[1741528743102,0.04879641,133.49,133.46,0.05228214]
[1741528743298,0.04879641,133.49,133.46,31.15228214]
[1741528743502,0.04879641,133.49,133.46,38.64628214]
[1741528743705,0.04879641,133.49,133.46,31.15228214]
[1741528744011,0.04879641,133.49,133.47,7.4932]
[1741528744400,0.04879641,133.49,133.46,0.05228214]
[1741528744605,0.04879641,133.49,133.47,7.4935]
[1741528744910,0.04879641,133.49,133.46,0.05228214]
[1741528745105,0.04879641,133.49,133.48,7.4931]
[1741528745813,0.04879641,133.49,133.46,0.05228214]
[1741528746410,0.04879641,133.49,133.48,7.4931]
[1741528747414,0.04879641,133.49,133.46,0.05228214]
[1741528747415,7.4936,133.47,133.46,0.05228214]
[1741528748312,7.4957,133.44,133.41,224.7]
[1741528748808,31.1,133.45,133.41,224.7]
[1741528749014,7.4968,133.42,133.36,31.1]
[1741528749408,7.5515961,133.4,133.38,0.0532774]
[1741528749609,0.0535961,133.4,133.38,0.0532774]
[1741528749814,2.0343,133.4,133.35,224.76]
[1741528750012,7.499,133.38,133.35,224.76]
[1741528750212,2.08722518,133.4,133.35,224.76]
[1741528750409,2.08722518,133.4,133.32,30.89989998]
[1741528750611,33.86783039,133.38,133.32,30.89989998]
[1741528750812,31.12,133.37,133.32,30.89989998]
[1741528751015,7.5008,133.35,133.29,224.76]
[1741528751311,33.86783039,133.35,133.29,224.76]
[1741528751906,33.86783039,133.32,133.28,30.89989998]
[1741528752213,0.04799107,133.31,133.28,12.10114381]
[1741528752419,33.86783039,133.29,133.27,23.19579874]
[1741528752716,31.64,133.28,133.26,123.20931713]
[1741528752912,65.78783039,133.29,133.26,123.20931713]
[1741528753117,33.86783039,133.34,133.26,123.20931713]
[1741528753315,32.22,133.33,133.29,7.5037]
[1741528753618,0.05626987,133.31,133.29,0.05442149]
[1741528754313,66.16783039,133.37,133.29,7.55812149]
[1741528754517,33.86783039,133.34,133.27,3.9743]
[1741528754721,32.34,133.33,133.26,123.20931713]
[1741528755320,32.34,133.33,133.28,0.04879554]
[1741528755321,0.05193148,133.31,133.28,0.04879554]
[1741528757620,0.05193148,133.31,133.3,7.5032]
[1741528758215,32.42,133.38,133.33,7.5014]
[1741528758416,32.44,133.39,133.33,7.5014]
[1741528759010,32.44,133.39,133.29,2.0784]
[1741528759211,32.44,133.39,133.34,7.5005]
[1741528759415,0.05353964,133.35,133.33,0.05062198]
[1741528759616,32.44,133.39,133.33,0.05062198]
[1741528759817,0.05422878,133.35,133.33,0.05062198]
[1741528760018,42.60450056,133.41,133.33,0.05062198]
[1741528760426,42.64450056,133.41,133.33,0.05062198]
[1741528760626,10.20450056,133.41,133.39,7.498]
[1741528760825,10.20450056,133.41,133.34,1.9717]
[1741528761133,66.32783039,133.45,133.4,7.4971]
[1741528761523,73.03913123,133.47,133.41,0.04903143]
[1741528761730,0.05680834,133.44,133.41,0.04903143]
[1741528762433,7.496,133.43,133.41,0.04903143]
[1741528762632,0.05680834,133.44,133.41,0.04903143]
[1741528762825,0.05680834,133.44,133.41,7.54563143]
[1741528763130,0.05680834,133.44,133.41,0.04903143]
[1741528764534,0.05680834,133.44,133.42,7.4964]
[1741528764727,0.05680834,133.44,133.41,0.04903143]
[1741528765224,41.36073039,133.49,133.41,1.96873143]
[1741528765429,33.86783039,133.49,133.41,1.96873143]
[1741528765834,106.84696162,133.52,133.41,1.96873143]
[1741528766231,66.24783039,133.52,133.41,1.9197]
[1741528766431,0.05278261,133.48,133.45,0.05180714]
[1741528766930,7.54598261,133.48,133.45,0.05180714]
[1741528767327,32.43278261,133.48,133.45,0.05180714]
[1741528767528,7.4936,133.47,133.45,0.05180714]
[1741528768833,39.92598261,133.48,133.45,0.05180714]
[1741528769333,33.86783039,133.46,133.41,1.9197]
[1741528770031,7.4957,133.44,133.41,1.9197]
[1741528770632,7.55221679,133.44,133.41,1.96989011]
[1741528770828,0.05651679,133.44,133.41,1.96989011]
[1741528771034,33.86783039,133.43,133.36,1.9841]
[1741528771231,33.86783039,133.4,133.34,226.7995]
[1741528771425,7.499,133.38,133.34,7.5007]
[1741528771631,66.14783039,133.4,133.31,2.0246]
[1741528771834,33.86783039,133.37,133.31,2.0246]
[1741528772137,32.28,133.4,133.31,2.0246]
[1741528772331,7.053e-05,133.35,133.33,0.05746655]
[1741528772531,7.053e-05,133.35,133.33,32.43746655]
[1741528772732,41.36433039,133.42,133.34,1.9488]
[1741528773134,41.36433039,133.42,133.35,1.9808]
[1741528773334,33.86783039,133.42,133.35,1.9808]
[1741528773535,0.05120604,133.4,133.37,0.04869685]
[1741528774534,7.4985,133.39,133.37,0.04869685]
[1741528774735,0.05120604,133.4,133.37,0.04869685]
[1741528776531,0.05120604,133.4,133.39,7.4981]
[1741528776737,32.38,133.43,133.37,32.32869685]
[1741528776932,33.86783039,133.45,133.38,1.9491]
[1741528777131,7.4962,133.43,133.39,7.498]
[1741528777332,33.86783039,133.45,133.38,1.9491]
[1741528777738,33.86783039,133.45,133.4,7.4975]
[1741528777938,0.05557101,133.43,133.4,7.54813786]
[1741528778135,66.14783039,133.42,133.4,0.05063786]
[1741528779140,32.28,133.42,133.4,0.05063786]
[1741528779337,0.05557101,133.43,133.4,7.54813786]
[1741528779641,0.05557101,133.43,133.4,0.05063786]
[1741528779831,0.05557101,133.43,133.41,7.4966]
[1741528780031,0.05557101,133.43,133.4,0.05063786]
[1741528780632,0.05557101,133.43,133.42,7.4964]
[1741528782635,0.05557101,133.43,133.4,0.05063786]
[1741528785042,7.55147101,133.43,133.4,7.54793786]
[1741528785240,0.05557101,133.43,133.4,0.05063786]
[1741528786439,7.4968,133.42,133.4,0.05063786]
[1741528786638,0.05557101,133.43,133.4,0.05063786]
[1741528787140,7.497,133.41,133.4,0.05063786]
[1741528787544,3.74,133.41,133.35,224.9]
[1741528787742,7.4996,133.37,133.35,224.9]
[1741528787940,66.30783039,133.36,133.19,224.9]
[1741528788247,33.86783039,133.28,133.19,5.9772]
[1741528788545,34.92,133.29,133.19,5.9772]
[1741528788746,0.04875275,133.27,133.25,0.05308134]
[1741528789444,0.04875275,133.27,133.24,0.65195459]
[1741528790736,0.2652,133.34,133.24,0.6997343]
[1741528790940,35.44,133.37,133.25,69.32783039]
[1741528791145,10.20450056,133.32,133.25,35.46]
[1741528792040,0.05172394,133.3,133.27,0.04873578]
[1741528792350,10.20450056,133.32,133.27,0.04873578]
[1741528792843,33.86783039,133.3,133.27,0.04873578]
[1741528793044,7.506,133.25,133.24,0.65195459]
[1741528793449,43.066,133.25,133.24,5.459e-05]
[1741528793749,7.5097,133.19,133.16,225.0]
[1741528793942,33.86783039,133.24,133.12,33.86783039]
[1741528794148,33.86783039,133.24,133.11,35.58]
[1741528794343,0.05480036,133.19,133.16,0.05382471]
[1741528794646,0.05480036,133.19,133.13,35.54]
[1741528794848,0.05480036,133.19,133.16,0.04827265]
[1741528795047,69.40783039,133.21,133.16,0.04827265]
[1741528795353,0.0548678,133.19,133.1,258.88783039]
[1741528795650,69.40783039,133.21,133.17,0.04967532]
[1741528795851,7.5111,133.16,133.08,6.0449]
[1741528796150,35.67313028,133.16,133.13,0.04908571]
[1741528796346,7.5122,133.14,133.13,0.04908571]
[1741528796538,35.62,133.16,133.07,123.20931713]
[1741528796539,35.6754643,133.16,133.07,123.20931713]
[1741528796951,35.62,133.16,133.12,0.04950079]
[1741528797450,0.05054075,133.13,133.12,0.04950079]
[1741528797650,36.66,133.19,133.12,0.04950079]
[1741528798048,7.511,133.17,133.12,0.04950079]
[1741528798249,55.48717927,133.17,133.12,0.04950079]
[1741528798450,36.66,133.19,133.12,0.04950079]
[1741528798947,0.0525162,133.17,133.12,0.04950079]
[1741528799154,55.48717927,133.23,133.12,225.18950079]
[1741528799351,55.48717927,133.23,133.12,225.14]
[1741528799551,103.38717927,133.25,133.13,55.48717927]
[1741528799748,103.38717927,133.25,133.13,2.0598]
[1741528799954,55.48717927,133.17,133.08,1.9147]
[1741528800250,49.76,133.2,133.08,3.9745]
[1741528800449,0.0487083,133.14,133.11,0.05053959]
[1741528800652,7.5089,133.2,133.11,0.05053959]
[1741528800853,7.5089,133.2,133.09,50.72]
[1741528801150,243.14,133.24,133.11,55.48717927]
[1741528801356,55.48717927,133.25,133.12,225.18]
[1741528801654,55.48717927,133.22,133.12,225.18]
[1741528801848,55.48717927,133.19,133.17,3.47e-06]
[1741528802049,106.88717927,133.19,133.17,3.47e-06]
[1741528802250,106.88717927,133.19,133.08,59.46167927]
[1741528802251,51.4,133.19,133.08,59.46167927]
[1741528802458,106.88717927,133.19,133.08,3.9745]
[1741528802653,55.48717927,133.16,133.04,225.18]
[1741528802954,193.0,133.17,133.02,55.48717927]
[1741528803156,55.48717927,133.04,132.99,1.30753335]
[1741528803455,215.0,133.03,132.84,5.958]
[1741528803651,22.0,133.03,132.91,55.48717927]
[1741528803856,22.0,133.03,132.86,55.48717927]
[1741528803857,55.48717927,133.0,132.92,5.958]
[1741528804058,55.48717927,133.02,132.92,5.958]
[1741528804259,55.48717927,133.07,132.92,5.958]
[1741528804459,193.0,133.06,132.94,55.48717927]
[1741528804761,55.48717927,133.1,132.97,55.48717927]
[1741528804951,193.0,133.11,132.98,225.22]
[1741528805357,55.48717927,133.12,133.0,55.48717927]
[1741528805555,55.48717927,133.12,133.01,1.8999]
[1741528805759,55.48717927,133.17,133.03,55.48717927]
[1741528806057,193.0,133.16,133.06,55.48717927]
[1741528806254,1.30795106,133.17,133.07,3.9766]
[1741528806457,10.20450056,133.14,133.12,55.48717927]
[1741528806659,30.39463067,133.15,133.13,2.0511]
[1741528806860,30.39463067,133.15,133.14,7.5122]
[1741528807057,19.09093067,133.15,133.14,232.8122]
[1741528807263,117.01505733,133.17,133.14,229.06]
[1741528807462,81.92805733,133.17,133.16,55.48717927]
[1741528807662,58.45405733,133.17,133.16,62.99827927]
[1741528807857,58.50352657,133.17,133.14,225.3]
[1741528808567,58.50352657,133.17,133.13,0.05060532]
[1741528808752,60.58052657,133.17,133.13,0.05060532]
[1741528809462,58.50352657,133.17,133.13,0.05060532]
[1741528809663,58.50352657,133.17,133.13,55.53778459]
[1741528809858,6.924e-05,133.17,133.16,7.5111]
[1741528810360,6.924e-05,133.17,133.13,0.05060532]
[1741528810761,62.99837927,133.16,133.13,0.05060532]
[1741528810962,6.924e-05,133.17,133.13,0.05060532]
[1741528812261,6.924e-05,133.17,133.13,55.53778459]
[1741528812465,6.924e-05,133.17,133.16,62.99827927]
[1741528812661,6.924e-05,133.17,133.16,7.5111]
[1741528812866,1.8918,133.31,133.16,65.76]
[1741528813065,9.3944,133.31,133.2,55.48717927]
[1741528813364,1.8918,133.31,133.21,2.0375]
[1741528813865,55.48717927,133.38,133.25,55.48717927]
[1741528814059,0.0544703,133.27,133.26,225.28]
[1741528814461,7.5042,133.29,133.22,11.4053]
[1741528814657,55.48717927,133.32,133.22,3.8977]
[1741528814971,0.04794795,133.28,133.25,0.05516092]
[1741528816865,0.04794795,133.28,133.26,62.0]
[1741528817065,4.795e-05,133.28,133.26,62.0]
[1741528817269,68.9306,133.4,133.26,121.24717927]
[1741528817567,68.9306,133.4,133.29,55.48717927]
[1741528817771,68.9306,133.4,133.3,227.1455]
[1741528817772,7.4982,133.39,133.3,227.1455]
[1741528818072,68.9306,133.4,133.3,227.1455]
[1741528818259,66.96,133.45,133.32,55.48717927]
[1741528818463,0.05770046,133.36,133.32,55.48717927]
[1741528818765,0.05770046,133.36,133.33,0.05724062]
[1741528818964,55.48717927,133.41,133.31,1.9255]
[1741528819469,0.05381756,133.36,133.33,0.05324117]
[1741528820465,12.7,133.39,133.37,7.4992]
[1741528820667,12.7,133.39,133.33,66.95324117]
[1741528820668,12.7,133.39,133.34,62.0]
[1741528821176,12.7,133.39,133.31,1.9255]
[1741528821370,12.7,133.39,133.31,57.41267927]
[1741528821563,20.1983,133.39,133.31,1.9255]
[1741528821769,0.05483688,133.36,133.34,0.05750411]
[1741528822972,3.688e-05,133.36,133.34,0.05750411]
[1741528823662,3.688e-05,133.36,133.35,7.5004]
[1741528824064,3.688e-05,133.36,133.35,69.5004]
[1741528824578,3.688e-05,133.36,133.34,0.05750411]
[1741528825768,55.48721615,133.36,133.3,225.2]
[1741528826067,3.688e-05,133.36,133.3,225.2]
[1741528826273,55.48721615,133.36,133.3,225.2]
[1741528826570,3.688e-05,133.36,133.3,225.2]
[1741528827275,3.688e-05,133.36,133.32,0.05424091]
[1741528827573,3.688e-05,133.36,133.33,62.0]
[1741528827766,3.688e-05,133.36,133.35,7.5004]
[1741528828166,0.92363688,133.39,133.38,7.4987]
[1741528828366,0.92363688,133.39,133.38,232.5587]
[1741528828671,29.35,133.44,133.38,225.06]
[1741528828872,29.35,133.44,133.42,7.496]
[1741528829069,29.35,133.44,133.38,225.06]
[1741528829270,29.35,133.44,133.4,7.4974]
[1741528829465,29.39858479,133.44,133.42,0.05696216]
[1741528832071,7.4959,133.43,133.42,0.05696216]
[1741528832379,29.39858479,133.44,133.42,0.05696216]
[1741528834171,7.4959,133.43,133.42,0.05696216]
[1741528834674,29.39858479,133.44,133.42,0.05696216]
[1741528835876,7.4959,133.43,133.42,0.05696216]
[1741528836175,29.39858479,133.44,133.42,0.05696216]
[1741528836376,7.4959,133.43,133.42,0.05696216]
[1741528837078,29.39858479,133.44,133.42,0.05696216]
[1741528837978,0.04858479,133.44,133.42,0.05696216]
[1741528838775,0.04858479,133.44,133.4,62.0]
[1741528838974,55.48717927,133.41,133.24,226.18432338]
[1741528839174,7.5015,133.34,133.25,3.9633]
[1741528839679,55.48717927,133.37,133.25,3.9633]
[1741528839878,7.5016,133.33,133.25,3.9633]
[1741528840074,0.05629416,133.32,133.3,0.05116427]
[1741528840375,61.47087927,133.4,133.3,0.05116427]
[1741528840580,0.05408039,133.32,133.29,55.48717927]
[1741528840771,61.47087927,133.4,133.29,55.48717927]
[1741528840977,29.94157497,133.34,133.29,55.48717927]
[1741528841876,29.94157497,133.34,133.25,197.9633]
[1741528842081,29.94157497,133.34,133.25,316.45047927]
[1741528842379,0.05423373,133.31,133.28,0.05143583]
[1741528843376,7.55733373,133.31,133.28,0.05143583]
[1741528843774,0.05423373,133.31,133.28,0.05143583]
[1741528844182,7.5037,133.29,133.28,0.05143583]
[1741528844678,0.05423373,133.31,133.28,0.05143583]
[1741528844881,0.05423373,133.31,133.28,225.01143583]
[1741528845280,7.5037,133.29,133.28,225.01143583]
[1741528845576,55.541413,133.31,133.21,224.96]
[1741528845783,55.48717927,133.28,133.21,224.96]
[1741528846087,55.48717927,133.25,133.21,224.96]
[1741528846272,7.5077,133.22,133.21,224.96]
[1741528847075,62.99487927,133.22,133.21,221.8233]
[1741528847285,7.5082,133.21,133.2,0.05580934]
[1741528848582,0.05770734,133.23,133.2,0.05580934]
[1741528848778,7.56490734,133.23,133.2,0.05580934]
[1741528848977,0.05770734,133.23,133.2,0.05580934]
[1741528850687,2.0211,133.28,133.2,0.05580934]
[1741528850883,7.505,133.27,133.2,4.00630934]
[1741528851177,2.0211,133.28,133.2,3.9505]
[1741528851484,7.5069,133.24,133.2,3.9505]
[1741528851684,0.05282569,133.25,133.23,0.05083495]
[1741528851985,55.48717927,133.27,133.16,3.783]
[1741528852282,0.05678609,133.25,133.23,0.05682459]
[1741528852474,0.05678609,133.25,133.16,3.783]
[1741528852679,7.5066,133.24,133.23,0.05515314]
[1741528852977,0.05387808,133.25,133.16,3.783]
[1741528853176,7.5071,133.23,133.22,0.05204086]
[1741528853383,57.49047927,133.24,133.15,224.96]
[1741528853685,0.04875605,133.22,133.15,224.96]
[1741528854073,55.48717927,133.21,133.18,0.05489253]
[1741528854281,1.9499,133.2,133.15,224.96]
[1741528854880,2.0033,133.24,133.15,224.96]
[1741528854881,57.49047927,133.24,133.15,224.96]
[1741528855082,2.0033,133.24,133.15,224.96]
[1741528855583,0.0478359,133.21,133.18,0.05232407]
[1741528859386,7.5094,133.19,133.18,0.05232407]
[1741528859586,0.0478359,133.21,133.18,0.05232407]
[1741528860486,7.5088,133.2,133.18,0.05232407]
[1741528860788,0.0478359,133.21,133.18,0.05232407]
[1741528860993,114.64717927,133.2,133.15,224.96]
[1741528861185,7.5111,133.16,133.15,224.96]
[1741528861386,2.0684,133.19,133.11,1.9272]
[1741528861585,9.5779,133.19,133.11,1.9272]
[1741528861787,2.0684,133.19,133.11,1.9272]
[1741528862088,55.48717927,133.23,133.12,114.52717927]
[1741528862385,2.0033,133.24,133.15,55.48717927]
[1741528862687,193.0,133.3,133.14,0.05625559]
[1741528862688,55.48717927,133.32,133.21,55.48717927]
[1741528862882,2.0684,133.31,133.22,225.22]
[1741528863081,7.5011,133.34,133.24,55.48717927]
[1741528863279,2.0684,133.35,133.24,55.48717927]
[1741528863481,2.0684,133.35,133.27,55.48717927]
[1741528863893,59.1,133.4,133.3,0.05406584]
[1741528864091,59.1,133.4,133.31,225.22]
[1741528864395,55.48717927,133.35,133.25,225.22]
[1741528864584,1.8983,133.34,133.25,225.22]
[1741528865191,0.05192092,133.31,133.28,0.0513167]
[1741528867697,0.05192092,133.31,133.28,55.53849597]
[1741528867993,0.2012,133.41,133.28,55.53849597]
[1741528867994,58.32,133.44,133.29,58.36]
[1741528868187,4.1548,133.44,133.33,55.48717927]
[1741528868393,113.80717927,133.47,133.36,55.48717927]
[1741528868791,113.80717927,133.47,133.34,227.117]
[1741528868993,0.05545028,133.43,133.4,0.05371748]
[1741528870289,7.497,133.41,133.4,0.05371748]
[1741528870495,2.0732,133.42,133.34,225.18]
[1741528870891,2.0732,133.42,133.35,62.0]
[1741528871096,2.0732,133.42,133.34,225.18]
[1741528871394,29.98,133.41,133.34,225.18]
[1741528871595,0.05545365,133.39,133.37,0.05116922]
[1741528871796,7.4987,133.38,133.37,0.05116922]
[1741528872195,0.05545365,133.39,133.37,0.05116922]
[1741528874795,7.4987,133.38,133.37,0.05116922]
[1741528876695,0.05545365,133.39,133.37,0.05116922]
[1741528878094,7.4987,133.38,133.37,0.05116922]
[1741528878294,0.05545365,133.39,133.37,0.05116922]
[1741528879202,7.4987,133.38,133.37,0.05116922]
[1741528879690,7.55415365,133.39,133.37,0.05116922]
[1741528879888,0.05545365,133.39,133.37,0.05116922]